lending/lending_fUSD_20240807
["ID","MTS","AMOUNT","RATE_DAILY","PERIOD"]
[334390095,1723023043402,-151.0,0.0001246,2]
[334390096,1723023043411,-151.0,0.0001246,2]
[334390097,1723023043420,-151.0,0.0001246,2]
[334390098,1723023043430,-151.0,0.0001246,2]
[334390099,1723023043439,-247.993195,0.0001246,2]
[334390100,1723023043449,-151.0,0.0001246,2]
[334390101,1723023043458,-151.0,0.0001246,2]
[334390102,1723023043468,-151.0,0.0001246,2]
[334390103,1723023043477,-151.0,0.0001246,2]
[334390104,1723023043487,-151.0,0.0001246,2]
[334390105,1723023043497,-151.0,0.0001246,2]
[334390106,1723023043510,-241.538538,0.0001246,2]
[334390107,1723023043519,-645.527498,0.0001246,2]
[334390108,1723023043529,-151.0,0.0001246,2]
[334390109,1723023043538,-645.527498,0.0001246,2]
[334390110,1723023043548,-151.0,0.0001246,2]
[334390111,1723023043557,-151.0,0.0001246,2]
[334390112,1723023043566,-151.0,0.0001246,2]
[334390113,1723023043576,-151.0,0.0001246,2]
[334390114,1723023043585,-228.004468,0.0001246,2]
[334390115,1723023043594,-228.004468,0.0001246,2]
[334390116,1723023043603,-151.0,0.0001246,2]
[334390118,1723023043613,-151.0,0.0001246,2]
[334390120,1723023043623,-187.611014,0.0001246,2]
[334390121,1723023043632,-1336.30043,0.0001246,2]
[334390122,1723023043642,-187.611014,0.0001246,2]
[334390123,1723023043651,-1336.30043,0.0001246,2]
[334390124,1723023043660,-422.047322,0.0001246,2]
[334390125,1723023043670,-332.132157,0.0001246,2]
[334390126,1723023043679,-422.047322,0.0001246,2]
[334390127,1723023043689,-332.132157,0.0001246,2]
[334390128,1723023043698,-502.732324,0.0001246,2]
[334390129,1723023043707,-502.732324,0.0001246,2]
[334390130,1723023043716,-151.0,0.0001246,2]
[334390131,1723023043725,-151.0,0.0001246,2]
[334390132,1723023043734,-151.0,0.0001246,2]
[334390133,1723023043744,-151.0,0.0001246,2]
[334390134,1723023043754,-151.0,0.0001246,2]
[334390135,1723023043764,-473.843301,0.0001246,2]
[334390136,1723023043774,-151.0,0.0001246,2]
[334390137,1723023043783,-473.843301,0.0001246,2]
[334390138,1723023043793,-151.0,0.0001246,2]
[334390139,1723023043803,-151.0,0.0001246,2]
[334390140,1723023043812,-151.0,0.0001246,2]
[334390141,1723023043821,-151.0,0.0001246,2]
[334390142,1723023043831,-151.0,0.0001246,2]
[334390143,1723023043840,-151.0,0.0001246,2]
[334390144,1723023043850,-151.0,0.0001246,2]
[334390145,1723023043859,-238.510009,0.0001246,2]
[334390146,1723023043868,-238.510009,0.0001246,2]
[334390147,1723023043877,-151.0,0.0001246,2]
[334390148,1723023043886,-958.005066,0.0001246,2]
[334390149,1723023043895,-151.0,0.0001246,2]
[334390150,1723023043904,-958.005066,0.0001246,2]
[334390151,1723023043913,-151.0,0.0001246,2]
[334390152,1723023043923,-187.383254,0.0001246,2]
[334390153,1723023043932,-152.228185,0.0001246,2]
[334390154,1723023043941,-151.0,0.0001246,2]
[334390155,1723023043950,-151.0,0.0001246,2]
[334390156,1723023043961,-300.10646565,0.00012473,2]
[334390157,1723023043972,-200.0,0.00012473,2]
[334390158,1723023043981,-2000.0,0.000125,2]
[334390159,1723023043990,-2000.0,0.000125,2]
[334390160,1723023043999,-2000.0,0.000125,2]
[334390161,1723023044012,-400.0,0.00012542,2]
[334390162,1723023044021,-1000.0,0.00012632,2]
[334390163,1723023044031,-877.06111,0.0001268,2]
[334390164,1723023044043,-297.94,0.00012738,2]
[334390165,1723023044052,-465.943,0.00012784,2]
[334390166,1723023044061,-179.99,0.00012893,2]
[334390167,1723023044071,-587.0,0.00012928,2]
[334390168,1723023044080,-587.0,0.00012946,2]
[334390169,1723023044089,-360.0,0.00012958,2]
[334390170,1723023044098,-300.0,0.00013,2]
[334390171,1723023044108,-155.0,0.00013,2]
[334390172,1723023044118,-5401.5400912,0.00013,2]
[334390173,1723023044127,-433.0,0.00013066,2]
[334390174,1723023044137,-186.66,0.00013098,2]
[334390175,1723023044147,-3119.70333999,0.00013297,2]
[334390176,1723023044156,-200.0,0.000133,2]
[334390177,1723023044166,-1415.36003778,0.0001331,2]
[334390178,1723023044175,-877.06112,0.0001331,2]
[334390179,1723023044185,-713.88967935,0.0001346,2]
[334390180,1723023044194,-1405.50443999,0.00013479,2]
[334390181,1723023044204,-2000.0,0.000135,2]
[334390182,1723023044214,-2000.0,0.000135,2]
[334390183,1723023044223,-2000.0,0.000135,2]
[334390184,1723023044233,-465.943,0.00013524,2]
[334390185,1723023044243,-151.0,0.00013699,2]
[334390186,1723023044252,-6985.98,0.00013699,2]
[334390187,1723023044264,-200.0,0.00013699,2]
[334390188,1723023044273,-2751.0,0.00013699,2]
[334390189,1723023044283,-491.21,0.00013699,2]
[334390190,1723023044292,-7058.53,0.00013699,2]
[334390191,1723023044302,-500.0,0.00013699,2]
[334390192,1723023044311,-150.0,0.00013699,2]
[334390193,1723023044321,-1061.12,0.00013699,2]
[334390194,1723023044330,-155.0,0.00013699,2]
[334390195,1723023044340,-5800.0,0.00013766,2]
[334390196,1723023044350,-5800.0,0.00013775,2]
[334390197,1723023044360,-5800.0,0.00013783,2]
[334390198,1723023044370,-3496.51723383,0.00013789,2]
[334390199,1723023044380,-5800.0,0.00013791,2]
[334390200,1723023044391,-5800.0,0.000138,2]
[334390201,1723023044400,-151.0,0.000138,2]
[334390202,1723023044411,-295.354528,0.000138,2]
[334390203,1723023044420,-194.28,0.000138,2]
[334390204,1723023044430,-151.0,0.000138,2]
[334390205,1723023044439,-228.054149,0.000138,2]
[334390206,1723023044449,-228.054149,0.000138,2]
[334390207,1723023044460,-151.0,0.000138,2]
[334390208,1723023044469,-285.58644,0.000138,2]
[334390209,1723023044479,-151.0,0.000138,2]
[334390210,1723023044488,-257.91644,0.000138,2]
[334390211,1723023044507,-151.0,0.000138,2]
[334390212,1723023044516,-151.0,0.000138,2]
[334390213,1723023044526,-151.0,0.000138,2]
[334390214,1723023044536,-151.0,0.000138,2]
[334390215,1723023044545,-151.0,0.000138,2]
[334390216,1723023044555,-195.981655,0.000138,2]
[334390217,1723023044565,-151.0,0.000138,2]
[334390218,1723023044574,-195.981655,0.000138,2]
[334390219,1723023044584,-151.0,0.000138,2]
[334390220,1723023044594,-151.0,0.000138,2]
[334390221,1723023044603,-151.0,0.000138,2]
[334390222,1723023044614,-151.0,0.000138,2]
[334390223,1723023044624,-483.339703,0.000138,2]
[334390224,1723023044633,-151.0,0.000138,2]
[334390225,1723023044643,-483.339703,0.000138,2]
[334390226,1723023044652,-151.0,0.000138,2]
[334390227,1723023044662,-151.0,0.000138,2]
[334390228,1723023044671,-151.0,0.000138,2]
[334390229,1723023044681,-152.053545,0.000138,2]
[334390230,1723023044690,-174.298926,0.000138,2]
[334390231,1723023044700,-174.298926,0.000138,2]
[334390232,1723023044709,-151.0,0.000138,2]
[334390233,1723023044719,-151.0,0.000138,2]
[334390234,1723023044728,-213.578128,0.000138,2]
[334390235,1723023044739,-213.578128,0.000138,2]
[334390236,1723023044748,-151.0,0.000138,2]
[334390237,1723023044760,-151.0,0.000138,2]
[334390238,1723023044770,-280.627693,0.000138,2]
[334390239,1723023044779,-151.0,0.000138,2]
[334390240,1723023044789,-151.0,0.000138,2]
[334390241,1723023044799,-151.0,0.000138,2]
[334390242,1723023044808,-151.0,0.000138,2]
[334390243,1723023044817,-151.0,0.000138,2]
[334390244,1723023044827,-151.0,0.000138,2]
[334390245,1723023044837,-496673.706353,0.000138,3]
[334390246,1723023044846,-151.0,0.000138,2]
[334390247,1723023044855,-151.0,0.000138,2]
[334390248,1723023044864,-958.005066,0.000138,2]
[334390249,1723023044874,-151.0,0.000138,2]
[334390250,1723023044883,-958.005066,0.000138,2]
[334390251,1723023044893,-151.0,0.000138,2]
[334390252,1723023044903,-151.0,0.000138,2]
[334390253,1723023044912,-151.0,0.000138,2]
[334390254,1723023044923,-400.0,0.00013842,2]
[334390255,1723023044932,-1738.76964944,0.00013859,2]
[334390256,1723023044941,-1000.0,0.00013895,2]
[334390257,1723023044951,-151.0,0.000139,2]
[334390258,1723023044961,-151.0,0.000139,2]
[334390259,1723023044972,-173.120932,0.000139,2]
[334390260,1723023044982,-173.120932,0.000139,2]
[334390261,1723023044991,-151.0,0.000139,2]
[334390262,1723023045000,-151.0,0.000139,2]
[334390263,1723023045013,-151.0,0.000139,2]
[334390264,1723023045022,-151.0,0.000139,2]
[334390265,1723023045032,-151.0,0.000139,2]
[334390266,1723023045041,-151.0,0.000139,2]
[334390267,1723023045053,-151.0,0.000139,2]
[334390268,1723023045063,-151.0,0.000139,2]
[334390269,1723023045072,-151.0,0.000139,2]
[334390270,1723023045082,-151.0,0.000139,2]
[334390271,1723023045091,-151.0,0.000139,2]
[334390272,1723023045100,-151.0,0.000139,2]
[334390273,1723023045110,-151.0,0.000139,2]
[334390274,1723023045119,-151.0,0.000139,2]
[334390275,1723023045128,-500.292611,0.000139,2]
[334390276,1723023045138,-500.292611,0.000139,2]
[334390277,1723023045147,-878.328705,0.000139,2]
[334390278,1723023045157,-878.328705,0.000139,2]
[334390279,1723023045166,-214.118407,0.000139,2]
[334390280,1723023045175,-151.0,0.000139,2]
[334390281,1723023045184,-214.118407,0.000139,2]
[334390282,1723023045193,-151.0,0.000139,2]
[334390283,1723023045201,-553.649894,0.000139,2]
[334390284,1723023045210,-553.649894,0.000139,2]
[334390285,1723023045219,-151.0,0.000139,2]
[334390286,1723023045228,-271.820824,0.000139,2]
[334390287,1723023045238,-151.0,0.000139,2]
[334390288,1723023045247,-172.320448,0.000139,2]
[334390289,1723023045258,-172.320448,0.000139,2]
[334390290,1723023045267,-281.385067,0.000139,2]
[334390291,1723023045276,-281.385067,0.000139,2]
[334390292,1723023045285,-151.0,0.000139,2]
[334390293,1723023045294,-151.0,0.000139,2]
[334390294,1723023045304,-151.0,0.000139,2]
[334390295,1723023045313,-151.0,0.000139,2]
[334390296,1723023045322,-151.0,0.000139,2]
[334390297,1723023045332,-151.0,0.000139,2]
[334390298,1723023045341,-151.0,0.000139,2]
[334390299,1723023045351,-151.0,0.000139,2]
[334390300,1723023045360,-291.817769,0.000139,2]
[334390301,1723023045370,-6816.647293,0.000139,2]
[334390302,1723023045379,-151.0,0.000139,2]
[334390303,1723023045388,-645.527498,0.000139,2]
[334390304,1723023045397,-151.0,0.000139,2]
[334390305,1723023045406,-645.527498,0.000139,2]
[334390306,1723023045416,-151.0,0.000139,2]
[334390307,1723023045426,-151.0,0.000139,2]
[334390308,1723023045435,-151.0,0.000139,2]
[334390309,1723023045445,-151.0,0.000139,2]
[334390310,1723023045455,-228.004468,0.000139,2]
[334390311,1723023045465,-228.004468,0.000139,2]
[334390312,1723023045474,-151.0,0.000139,2]
[334390313,1723023045483,-151.0,0.000139,2]
[334390314,1723023045493,-187.611014,0.000139,2]
[334390315,1723023045502,-1336.30043,0.000139,2]
[334390316,1723023045516,-187.611014,0.000139,2]
[334390317,1723023045526,-1336.30043,0.000139,2]
[334390318,1723023045535,-422.047322,0.000139,2]
[334390319,1723023045545,-332.132157,0.000139,2]
[334390320,1723023045554,-422.047322,0.000139,2]
[334390321,1723023045564,-332.132157,0.000139,2]
[334390322,1723023045574,-502.732324,0.000139,2]
[334390323,1723023045584,-502.732324,0.000139,2]
[334390324,1723023045594,-151.649936,0.000139,2]
[334390325,1723023045604,-151.961762,0.000139,2]
[334390326,1723023045614,-151.0,0.000139,2]
[334390327,1723023045624,-151.0,0.000139,2]
[334390328,1723023045634,-151.0,0.000139,2]
[334390329,1723023045643,-473.843301,0.000139,2]
[334390330,1723023045653,-151.0,0.000139,2]
[334390331,1723023045662,-473.843301,0.000139,2]
[334390332,1723023045672,-151.0,0.000139,2]
[334390333,1723023045682,-151.0,0.000139,2]
[334390334,1723023045692,-151.0,0.000139,2]
[334390335,1723023045702,-151.0,0.000139,2]
[334390336,1723023045712,-151.0,0.000139,2]
[334390337,1723023045722,-151.0,0.000139,2]
[334390338,1723023045731,-238.510009,0.000139,2]
[334390339,1723023045742,-238.510009,0.000139,2]
[334390340,1723023045752,-877.06111,0.0001393,2]
[334390341,1723023045767,-2718.536957,0.00013973,2]
[334390342,1723023045776,-154.35,0.00013973,2]
[334390343,1723023045787,-164.34,0.00013973,2]
[334390344,1723023045796,-166.17,0.00013973,2]
[334390345,1723023045805,-694.23,0.00013973,2]
[334390347,1723023045815,-732.44,0.00013973,2]
[334390348,1723023045825,-1188.16212591,0.00013998,2]
[334390349,1723023045834,-266.7749937,0.00014,2]
[334390350,1723023045844,-5493.386638,0.00014,2]
[334390351,1723023045853,-1650.0,0.00014,2]
[334390352,1723023045862,-823.0,0.0001421,2]
[334390353,1723023045871,-823.0,0.0001424,2]
[334390354,1723023045881,-232.60663216,0.00014247,2]
[334390355,1723023045890,-360.0,0.00014254,2]
[334390356,1723023045900,-736.0,0.00014328,2]
[334390357,1723023045910,-465.943,0.00014345,2]
[334390358,1723023045919,-6985.98,0.00014384,2]
[334390359,1723023045929,-1777.78902537,0.000144,2]
[334390360,1723023045938,-150.0,0.00014432,2]
[334390361,1723023045947,-1894.0,0.00014444,2]
[334390362,1723023045957,-549.0,0.00014444,2]
[334390363,1723023045971,-1332.042,0.00014444,2]
[334390364,1723023045980,-247.0,0.00014444,2]
[334390365,1723023045990,-1074.963,0.00014444,2]
[334390366,1723023045999,-919.988,0.00014444,2]
[334390367,1723023046015,-1924.0,0.00014444,2]
[334390368,1723023046025,-1004.653,0.00014444,2]
[334390369,1723023046035,-170.543,0.00014444,2]
[334390371,1723023046046,-2000.0,0.000145,2]
[334390373,1723023046058,-2000.0,0.000145,2]
[334390375,1723023046068,-2000.0,0.000145,2]
[334390377,1723023046077,-600.0,0.00014546,2]
[334390379,1723023046086,-193.23,0.00014586,2]
[334390381,1723023046096,-359.26552808,0.00014667,2]
[334390383,1723023046106,-2718.536957,0.00014795,2]
[334390385,1723023046117,-211.37912558,0.000149,2]
[334390387,1723023046127,-211.37912558,0.000149,2]
[334390389,1723023046136,-297.94,0.00014998,2]
[334390392,1723023046146,-1000.0,0.00014999,2]
[334390394,1723023046157,-155.0,0.00015,2]
[334390395,1723023046167,-1929.49553509,0.00015,2]
[334390396,1723023046177,-9628.22149973,0.00015,2]
[334390397,1723023046186,-494.0,0.00015,2]
[334390398,1723023046196,-194.66038605,0.00015,2]
[334390399,1723023046205,-494.0,0.00015,2]
[334390400,1723023046215,-310.10719237,0.00015,2]
[334390401,1723023046224,-20042.88433681,0.00015,7]
[334390402,1723023046234,-1552.0,0.00015,2]
[334390403,1723023046243,-7366.0,0.00015,2]
[334390404,1723023046253,-6985.98,0.00015068,2]
[334390405,1723023046272,-300.0,0.00015068,2]
[334390406,1723023046281,-500.0,0.000151,2]
[334390407,1723023046291,-1000.0,0.00015158,2]
[334390408,1723023046300,-266.98,0.00015222,2]
[334390409,1723023046310,-465.943,0.00015261,2]
[334390410,1723023046320,-624.04984358,0.00015369,2]
[334390411,1723023046329,-155.0,0.00015369,2]
[334390412,1723023046339,-2000.0,0.000155,2]
[334390413,1723023046348,-2000.0,0.000155,2]
[334390414,1723023046358,-2000.0,0.000155,2]
[334390415,1723023046367,-360.0,0.00015549,2]
[334390416,1723023046377,-2718.536957,0.00015616,2]
[334390417,1723023046388,-1152.0,0.0001562,2]
[334390418,1723023046398,-1152.0,0.00015664,2]
[334390419,1723023046407,-500.0,0.00015665,2]
[334390420,1723023046416,-500.0,0.00015673,2]
[334390421,1723023046426,-500.0,0.00015682,2]
[334390422,1723023046435,-500.0,0.00015691,2]
[334390423,1723023046449,-853.0,0.00015698,2]
[334390424,1723023046459,-500.0,0.000157,2]
[334390425,1723023046468,-500.0,0.00015709,2]
[334390426,1723023046478,-500.0,0.00015717,2]
[334390427,1723023046487,-186.66,0.00015718,2]
[334390428,1723023046495,-500.0,0.00015726,2]
[334390429,1723023046612,-500.0,0.00015735,2]
[334390430,1723023046622,-500.0,0.00015744,2]
[334390431,1723023046632,-500.0,0.00015753,2]
[334390432,1723023046643,-6985.98,0.00015753,2]
[334390433,1723023046652,-500.0,0.00015761,2]
[334390434,1723023046663,-500.0,0.0001577,2]
[334390435,1723023046672,-500.0,0.00015779,2]
[334390436,1723023046682,-500.0,0.00015788,2]
[334390437,1723023046692,-500.0,0.00015797,2]
[334390438,1723023046702,-500.0,0.00015805,2]
[334390439,1723023046712,-500.0,0.00015814,2]
[334390440,1723023046721,-500.0,0.00015823,2]
[334390441,1723023046731,-167.0,0.00015831,2]
[334390442,1723023046741,-500.0,0.00015832,2]
[334390443,1723023046751,-500.0,0.00015841,2]
[334390444,1723023046766,-600.0,0.00015846,2]
[334390445,1723023046776,-500.0,0.00015849,2]
[334390446,1723023046786,-500.0,0.00015858,2]
[334390447,1723023046796,-500.0,0.00015867,2]
[334390448,1723023046806,-305.0609458,0.0001587,2]
[334390449,1723023046816,-305.0609458,0.0001587,2]
[334390450,1723023046825,-500.0,0.00015876,2]
[334390451,1723023046835,-500.0,0.00015885,2]
[334390452,1723023046844,-500.0,0.00015893,2]
[334390453,1723023046854,-500.0,0.00015902,2]
[334390454,1723023046863,-500.0,0.00015911,2]
[334390455,1723023046873,-500.0,0.0001592,2]
[334390456,1723023046883,-500.0,0.00015929,2]
[334390457,1723023046892,-500.0,0.00015937,2]
[334390458,1723023046902,-500.0,0.00015946,2]
[334390459,1723023046911,-500.0,0.00015955,2]
[334390460,1723023046921,-500.0,0.00015964,2]
[334390461,1723023046930,-500.0,0.00015973,2]
[334390462,1723023046939,-500.0,0.00015981,2]
[334390463,1723023046949,-500.0,0.0001599,2]
[334390464,1723023046959,-500.0,0.00015999,2]
[334390465,1723023046969,-155.0,0.00016,2]
[334390467,1723023046982,-1700.0,0.00016,2]
[334390469,1723023046992,-288.09,0.00016044,2]
[334390471,1723023047002,-300.0,0.00016044,2]
[334390472,1723023047013,-530.56,0.00016044,2]
[334390473,1723023047023,-150.0,0.00016044,2]
[334390474,1723023047032,-356.25,0.00016044,2]
[334390475,1723023047043,-9999.99,0.00016116,2]
[334390476,1723023047053,-528.0,0.00016116,2]
[334390477,1723023047064,-302.57,0.00016116,2]
[334390478,1723023047073,-1108.13,0.00016116,2]
[334390479,1723023047083,-465.943,0.00016283,2]
[334390480,1723023047093,-200.0,0.0001634,2]
[334390481,1723023047102,-167.0,0.00016354,2]
[334390482,1723023047112,-3000.0,0.00016438,2]
[334390483,1723023047122,-3000.0,0.00016438,2]
[334390484,1723023047132,-800.0,0.00016438,2]
[334390485,1723023047142,-1700.0,0.00016438,2]
[334390486,1723023047152,-2000.0,0.00016438,2]
[334390487,1723023047162,-235.7,0.00016438,2]
[334390488,1723023047172,-235.7,0.00016438,2]
[334390489,1723023047182,-235.7,0.00016438,2]
[334390490,1723023047191,-235.7,0.00016438,2]
[334390491,1723023047202,-235.7,0.00016438,2]
[334390492,1723023047212,-235.7,0.00016438,2]
[334390493,1723023047221,-235.7,0.00016438,2]
[334390494,1723023047231,-235.7,0.00016438,2]
[334390495,1723023047241,-235.7,0.00016438,2]
[334390496,1723023047251,-235.7,0.00016438,2]
[334390497,1723023047263,-235.7,0.00016438,2]
[334390498,1723023047273,-235.7,0.00016438,2]
[334390499,1723023047282,-235.7,0.00016438,2]
[334390500,1723023047292,-235.7,0.00016438,2]
[334390501,1723023047302,-235.7,0.00016438,2]
[334390502,1723023047311,-235.7,0.00016438,2]
[334390503,1723023047321,-235.7,0.00016438,2]
[334390504,1723023047331,-235.7,0.00016438,2]
[334390505,1723023047340,-235.7,0.00016438,2]
[334390506,1723023047350,-235.7,0.00016438,2]
[334390507,1723023047359,-235.7,0.00016438,2]
[334390508,1723023047369,-235.7,0.00016438,2]
[334390509,1723023047381,-235.7,0.00016438,2]
[334390510,1723023047392,-235.75635427,0.00016438,2]
[334390511,1723023047403,-2000.0,0.00016438,2]
[334390512,1723023047413,-795.75,0.00016438,2]
[334390513,1723023047423,-795.75,0.00016438,2]
[334390514,1723023047432,-795.75,0.00016438,2]
[334390515,1723023047442,-795.75,0.00016438,2]
[334390516,1723023047453,-795.75,0.00016438,2]
[334390517,1723023047463,-795.75,0.00016438,2]
[334390518,1723023047474,-795.75,0.00016438,2]
[334390519,1723023047484,-795.75,0.00016438,2]
[334390520,1723023047495,-795.75,0.00016438,2]
[334390521,1723023047505,-795.75,0.00016438,2]
[334390522,1723023047518,-795.75,0.00016438,2]
[334390523,1723023047528,-795.75,0.00016438,2]
[334390524,1723023047538,-795.75,0.00016438,2]
[334390525,1723023047548,-795.75,0.00016438,2]
[334390526,1723023047558,-795.75,0.00016438,2]
[334390527,1723023047567,-795.75,0.00016438,2]
[334390528,1723023047578,-795.75,0.00016438,2]
[334390529,1723023047588,-795.75,0.00016438,2]
[334390530,1723023047597,-795.75,0.00016438,2]
[334390531,1723023047607,-795.75,0.00016438,2]
[334390532,1723023047617,-795.75,0.00016438,2]
[334390533,1723023047627,-795.75,0.00016438,2]
[334390534,1723023047636,-795.75,0.00016438,2]
[334390535,1723023047646,-795.82761262,0.00016438,2]
[334390536,1723023047655,-2718.536957,0.00016438,2]
[334390537,1723023047665,-6985.98,0.00016438,2]
[334390538,1723023047675,-300.0,0.00016438,2]
[334390539,1723023047685,-918.41689487,0.00016439,7]
[334390540,1723023047694,-453.44597508,0.00016441,2]
[334390541,1723023047704,-1975.199999,0.000165,2]
[334390542,1723023047713,-2000.0,0.000165,2]
[334390543,1723023047722,-2000.0,0.000165,2]
[334390544,1723023047731,-7012.18,0.000165,2]
[334390545,1723023047741,-6092.62478636,0.00016697,2]
[334390546,1723023047751,-344451.0,0.000167,2]
[334390547,1723023047763,-2000.0,0.00016712,2]
[334390548,1723023047772,-186.47,0.00016712,2]
[334390549,1723023047782,-2262.85941922,0.00016799,2]
[334390550,1723023047791,-167.0,0.00016876,2]
[334390551,1723023047801,-856.12945396,0.00016887,2]
[334390552,1723023047812,-165.56065455,0.000169,2]
[334390553,1723023047821,-151.0,0.000169,2]
[334390554,1723023047831,-214.61841368,0.000169,2]
[334390555,1723023047841,-257.95367254,0.00016953,2]
[334390556,1723023047851,-2000.0,0.00016986,2]
[334390557,1723023047860,-46581.08,0.00016986,2]
[334390558,1723023047870,-404.83132537,0.00016999,2]
[334390559,1723023047879,-2207.0597915,0.00017,3]
[334390560,1723023047889,-151.0,0.00017,2]
[334390561,1723023047899,-151.0,0.00017,2]
[334390562,1723023047909,-958.005066,0.00017,2]
[334390563,1723023047918,-151.0,0.00017,2]
[334390564,1723023047927,-958.005066,0.00017,2]
[334390565,1723023047936,-151.0,0.00017,2]
[334390566,1723023047946,-151.0,0.00017,2]
[334390567,1723023047957,-1613.0,0.0001717,2]
[334390568,1723023047970,-151.0,0.000172,2]
[334390569,1723023047980,-151.0,0.000172,2]
[334390570,1723023047989,-151.0,0.000172,2]
[334390571,1723023047998,-151.795125,0.000172,2]
[334390572,1723023048009,-151.0,0.000172,2]
[334390573,1723023048019,-151.0,0.000172,2]
[334390574,1723023048028,-151.0,0.000172,2]
[334390575,1723023048038,-238.510009,0.000172,2]
[334390576,1723023048049,-238.510009,0.000172,2]
[334390577,1723023048060,-11496.0,0.000172,3]
[334390578,1723023048070,-1613.0,0.00017231,2]
[334390579,1723023048079,-297.94,0.00017257,2]
[334390580,1723023048089,-3000.0,0.0001726,2]
[334390581,1723023048098,-3000.0,0.0001726,2]
[334390582,1723023048107,-800.0,0.0001726,2]
[334390583,1723023048116,-1700.0,0.0001726,2]
[334390584,1723023048126,-2000.0,0.0001726,2]
[334390585,1723023048135,-2000.0,0.0001726,2]
[334390586,1723023048144,-2718.536957,0.0001726,2]
[334390587,1723023048154,-167.0,0.00017399,2]
[334390588,1723023048164,-155.0,0.00017399,2]
[334390589,1723023048174,-465.943,0.00017429,2]
[334390590,1723023048183,-1894.0,0.00017444,2]
[334390591,1723023048193,-247.0,0.00017444,2]
[334390592,1723023048202,-1924.0,0.00017444,2]
[334390593,1723023048211,-993.699999,0.000175,2]
[334390594,1723023048220,-993.7,0.000175,2]
[334390595,1723023048229,-151.0,0.000175,2]
[334390596,1723023048238,-1336.30043,0.000175,2]
[334390597,1723023048248,-1336.30043,0.000175,2]
[334390598,1723023048257,-332.132157,0.000175,2]
[334390599,1723023048269,-332.132157,0.000175,2]
[334390600,1723023048279,-502.732324,0.000175,2]
[334390601,1723023048289,-502.732324,0.000175,2]
[334390602,1723023048298,-151.0,0.000175,2]
[334390603,1723023048307,-151.0,0.000175,2]
[334390604,1723023048317,-2000.0,0.00017534,2]
[334390605,1723023048327,-491.21,0.00017534,2]
[334390606,1723023048336,-155.0,0.00017636,2]
[334390607,1723023048346,-155.0,0.00017636,2]
[334390608,1723023048356,-6816.647293,0.000177,2]
[334390609,1723023048366,-151.0,0.000177,2]
[334390610,1723023048376,-645.527498,0.000177,2]
[334390611,1723023048386,-193.566618,0.000177,2]
[334390612,1723023048396,-645.527498,0.000177,2]
[334390613,1723023048405,-151.0,0.000177,2]